bitfinex/quotes_ETHUSD_20241018
["timestamp","ask_amount","ask_price","bid_price","bid_amount"]
[1729225265474,1.68548991,2618.2,2617.8,3.81992]
[1729225266011,3.81964,2618.1,2617.7,0.07639454]
[1729225266313,3.81964,2618.1,2617.7,0.70322299]
[1729225266561,7.63933,2618.1,2617.7,0.70322299]
[1729225266718,3.81964,2618.1,2617.7,0.70322299]
[1729225267156,7.63931,2618.1,2617.7,0.70322299]
[1729225267941,7.45,2618.6,2617.8,0.6862]
[1729225268265,7.45,2618.6,2618.2,1.68548991]
[1729225268266,3.81892,2618.6,2618.2,1.68548991]
[1729225268467,0.83144091,2618.7,2618.1,1.68548991]
[1729225268765,3.81892,2618.6,2618.2,0.61912899]
[1729225268950,6.31490991,2618.7,2618.2,0.61912899]
[1729225269329,4.62942,2618.7,2618.2,0.61912899]
[1729225269530,6.31490991,2618.7,2618.2,0.61912899]
[1729225269834,0.8106,2618.7,2618.3,0.61241589]
[1729225270040,2.49608991,2618.7,2618.3,0.61241589]
[1729225270243,0.8106,2618.7,2618.3,0.61241589]
[1729225271477,0.8106,2618.7,2618.3,1.29861589]
[1729225272472,3.81847,2618.9,2618.4,1.68548991]
[1729225272675,3.81847,2618.9,2618.5,0.6879682]
[1729225272676,0.7703,2618.9,2618.5,0.6879682]
[1729225272839,0.7703,2618.9,2618.5,4.5069282]
[1729225273178,1.68548991,2618.9,2618.6,0.10211453]
[1729225275038,3.83911091,2619.0,2618.6,0.10211453]
[1729225275337,1.68548991,2618.9,2618.6,0.9449198]
[1729225278384,0.02084091,2619.0,2618.7,4.50488]
[1729225278684,4.64393091,2619.3,2618.8,3.92017139]
[1729225278839,5.50351991,2619.2,2618.8,0.10172139]
[1729225279191,5.50351991,2619.2,2618.8,0.71348966]
[1729225279349,5.50351991,2619.2,2618.9,0.1016991]
[1729225279753,1.68548991,2619.1,2618.9,0.1016991]
[1729225280136,5.50351991,2619.2,2618.9,0.1016991]
[1729225281405,2.51153082,2619.3,2618.9,0.63369898]
[1729225281867,2.51153082,2619.3,2618.9,0.53199988]
[1729225281868,5.50348991,2619.2,2618.9,0.53199988]
[1729225282072,1.68548991,2619.2,2619.0,0.10150257]
[1729225282382,6.30851991,2619.3,2619.0,0.10150257]
[1729225282734,6.32936082,2619.3,2619.0,0.10150257]
[1729225282984,6.32936082,2619.3,2618.8,3.81845]
[1729225283148,1.68548991,2619.2,2619.1,0.10145203]
[1729225283348,6.30854991,2619.3,2618.8,4.89575691]
[1729225283557,6.30854991,2619.3,2619.1,0.10145203]
[1729225283743,6.30854991,2619.3,2618.8,3.81852]
[1729225283942,6.30854991,2619.3,2619.2,0.1014109]
[1729225284145,6.32939082,2619.3,2618.8,3.81852]
[1729225284365,6.30854991,2619.3,2619.2,0.1014109]
[1729225284573,6.32939082,2619.3,2618.8,3.81852]
[1729225284746,6.32939082,2619.3,2619.2,0.1014109]
[1729225284947,6.32939082,2619.3,2618.8,3.81852]
[1729225285181,6.32939082,2619.3,2619.2,0.1014109]
[1729225285384,6.32939082,2619.3,2618.8,3.81852]
[1729225285593,2.49068991,2619.3,2619.2,0.1014109]
[1729225285758,2.49068991,2619.3,2618.8,3.89488293]
[1729225285759,2.49068991,2619.3,2618.8,3.89480293]
[1729225285958,2.49068991,2619.3,2619.2,0.1014109]
[1729225286156,3.83851091,2619.4,2618.9,0.6862]
[1729225286405,2.45208991,2619.5,2619.2,0.1014109]
[1729225286556,2.45208991,2619.5,2619.1,3.8181]
[1729225286557,0.7666,2619.5,2619.1,3.8181]
[1729225286752,0.7666,2619.5,2619.3,0.10127561]
[1729225287068,5.52372082,2619.6,2619.4,0.10125332]
[1729225287266,5.52372082,2619.6,2619.1,4.81889699]
[1729225287267,5.52372082,2619.6,2619.1,3.8181]
[1729225287459,5.50286991,2619.6,2619.2,0.10126024]
[1729225287811,3.81738,2619.6,2619.2,3.91921024]
[1729225287966,5.50286991,2619.6,2619.2,1.04354025]
[1729225288568,5.50286991,2619.6,2619.2,0.10126024]
[1729225289302,5.50286991,2619.6,2619.2,3.91921024]
[1729225289502,6.26931991,2619.7,2619.2,0.17761094]
[1729225289701,1.68548991,2619.6,2619.2,0.10126024]
[1729225290275,0.78744091,2619.7,2619.3,0.6862]
[1729225290463,6.31679991,2619.9,2619.4,0.10121566]
[1729225290665,3.83793091,2619.8,2619.4,0.10121566]
[1729225290881,5.52342082,2619.8,2619.4,0.10121566]
[1729225291386,0.02084091,2619.8,2619.4,1.15126592]
[1729225291702,2.49978991,2619.9,2619.4,3.91879566]
[1729225291703,6.33759082,2619.9,2619.4,3.91879566]
[1729225292066,3.81709,2619.8,2619.4,3.91879566]
[1729225292266,5.50257991,2619.8,2619.4,3.91879566]
[1729225292585,3.81696,2619.9,2619.5,0.6862]
[1729225292796,5.50244991,2619.9,2619.5,0.6862]
[1729225292995,1.68548991,2619.8,2619.6,0.10117108]
[1729225293202,1.68548991,2619.7,2619.6,0.10117108]
[1729225293372,5.52356082,2619.7,2619.6,0.10117108]
[1729225293572,5.52356082,2619.7,2619.3,0.6862]
[1729225293889,5.52356082,2619.7,2619.3,1.1757977]
[1729225294072,5.52356082,2619.7,2619.4,0.10121566]
[1729225294698,1.68548991,2619.5,2619.4,0.10121566]
[1729225295009,5.50287991,2619.6,2619.4,0.10121566]
[1729225295372,5.52372082,2619.6,2619.1,4.50427]
[1729225295614,5.52372082,2619.6,2619.5,0.10119337]
[1729225295779,5.52372082,2619.6,2619.2,1.00079099]
[1729225295974,5.52372082,2619.6,2619.5,0.10119337]
[1729225296190,5.52372082,2619.6,2619.2,1.00079099]
[1729225296450,3.83823091,2619.6,2619.5,0.10119337]
[1729225296606,3.83823091,2619.6,2619.2,1.00079099]
[1729225296915,0.8143,2619.8,2619.4,3.81766]
[1729225297085,2.52063082,2619.8,2619.5,0.10119337]
[1729225297284,1.68548991,2619.8,2619.5,4.50371]
[1729225297607,3.81696,2619.9,2619.6,0.10117108]
[1729225297608,1.68548991,2619.7,2619.6,0.10117108]
[1729225297822,1.68548991,2619.8,2619.6,0.10117108]
[1729225298383,1.68548991,2619.7,2619.6,0.10117108]
[1729225298630,1.68548991,2619.7,2619.4,3.81765]
[1729225298930,1.68548991,2619.7,2619.5,0.60324544]
[1729225299420,1.68548991,2619.7,2619.5,0.09780983]
[1729225299421,1.68548991,2619.6,2619.5,0.09780983]
[1729225299624,2.52053082,2619.7,2619.5,0.09780983]
[1729225299781,0.83504091,2619.7,2619.3,4.50399]
[1729225299986,2.49968991,2619.7,2619.6,0.09750984]
[1729225300229,2.49968991,2619.7,2619.3,4.50399]
[1729225300426,2.49968991,2619.7,2619.6,0.09750984]
[1729225300606,2.49968991,2619.7,2619.3,5.336198]
[1729225300806,2.49968991,2619.7,2619.6,0.09750984]
[1729225301009,2.49968991,2619.7,2619.3,5.336198]
[1729225301212,2.49968991,2619.7,2619.6,0.09750984]
[1729225301411,2.49968991,2619.7,2619.3,5.336198]
[1729225301611,2.49968991,2619.7,2619.6,0.09750984]
[1729225301806,2.49968991,2619.7,2619.3,5.336198]
[1729225302020,2.49968991,2619.7,2619.6,0.09750984]
[1729225302245,2.49968991,2619.7,2619.3,5.336198]
[1729225302411,2.49968991,2619.7,2619.6,0.09750984]
[1729225302604,2.49968991,2619.7,2619.3,5.336198]
[1729225302806,2.49968991,2619.7,2619.6,0.09750984]
[1729225303044,2.49968991,2619.7,2619.3,5.336198]
[1729225303638,2.49968991,2619.7,2619.4,0.09755442]
[1729225305040,0.8142,2619.7,2619.4,0.09755442]
[1729225305243,1.68548991,2619.6,2619.4,0.09755442]
[1729225305401,2.49968991,2619.7,2619.4,0.09755442]
[1729225307140,0.8142,2619.7,2619.4,3.91516442]
[1729225307308,0.8142,2619.7,2619.4,4.7647138]
[1729225309335,0.8142,2619.7,2619.4,3.91516442]
[1729225309642,0.8142,2619.7,2619.4,0.09755442]
[1729225309643,2.49968991,2619.7,2619.4,0.09755442]
[1729225311492,0.8142,2619.7,2619.4,0.09755442]
[1729225312458,2.49968991,2619.7,2619.4,0.09755442]
[1729225313542,0.8142,2619.7,2619.4,0.09755442]
[1729225313907,6.31691991,2619.7,2619.4,0.09755442]
[1729225314533,2.49968991,2619.7,2619.4,0.09755442]
[1729225315019,0.8142,2619.7,2619.4,0.09755442]
[1729225315563,0.8142,2619.7,2619.4,3.91521442]
[1729225321668,1.70633082,2619.8,2619.4,3.91521442]
[1729225324886,1.68548991,2619.5,2619.4,0.09755442]
[1729225325080,1.70633082,2619.5,2619.4,0.09755442]
[1729225325263,0.02084091,2619.5,2619.1,3.81799]
[1729225325442,1.68548991,2619.5,2619.4,0.09079813]
[1729225325643,5.50296991,2619.6,2619.1,3.81799]
[1729225325845,5.50296991,2619.6,2619.4,0.09079813]
[1729225326036,1.68548991,2619.5,2619.1,3.81799]
[1729225326244,5.50296991,2619.6,2619.1,3.81799]
[1729225326546,1.68548991,2619.5,2619.1,3.81799]
[1729225326741,0.7925,2619.7,2619.3,3.81772]
[1729225326946,2.49883082,2619.7,2619.4,0.55032099]
[1729225327456,2.47798991,2619.7,2619.4,0.55032099]
[1729225327983,2.47798991,2619.7,2619.1,4.61552046]
[1729225327984,1.68548991,2619.5,2619.1,4.61552046]
[1729225328286,5.52372082,2619.6,2619.1,4.61552046]
[1729225328975,5.52372082,2619.6,2619.1,3.81803]
[1729225329176,1.68548991,2619.5,2619.1,4.61547046]
[1729225329378,1.68548991,2619.4,2619.0,5.30188046]
[1729225329589,2.53813082,2619.4,2619.0,6.64429714]
[1729225329883,2.53813082,2619.4,2619.0,2.82605714]
[1729225330060,2.51728991,2619.4,2619.1,3.8181]
[1729225330271,0.8318,2619.4,2619.1,4.61554046]
[1729225330458,5.50302991,2619.5,2619.1,4.61554046]
[1729225330788,5.50302991,2619.5,2619.1,3.8181]
[1729225330983,5.50302991,2619.5,2619.1,4.61554046]
[1729225331182,5.50302991,2619.5,2619.1,3.8181]
[1729225331398,5.50302991,2619.5,2619.1,4.61554046]
[1729225331693,5.50302991,2619.5,2619.1,5.13525625]
[1729225331896,1.68548991,2619.4,2619.1,1.31715625]
[1729225332201,3.81754,2619.5,2619.1,5.93268671]
[1729225332202,5.50302991,2619.5,2619.1,5.93268671]
[1729225333064,6.33468991,2619.6,2619.2,0.09091311]
[1729225333399,1.68548991,2619.5,2619.2,0.09091311]
[1729225334196,4.67004091,2619.6,2619.2,0.09091311]
[1729225334197,6.35553082,2619.6,2619.2,0.09091311]
[1729225334571,1.68548991,2619.5,2619.2,0.09091311]
[1729225337198,1.68548991,2619.5,2619.2,0.88835357]
[1729225337397,1.68548991,2619.5,2619.2,0.09091311]
[1729225342396,1.68548991,2619.5,2619.2,1.26330216]
[1729225342614,1.68548991,2619.7,2619.3,4.50392]
[1729225342912,3.81709,2619.8,2619.3,4.5039]
[1729225342913,3.83793091,2619.8,2619.3,4.5039]
[1729225343117,1.68548991,2619.7,2619.4,0.09086853]
[1729225346183,1.70633082,2619.7,2619.4,0.09086853]
[1729225346622,1.68548991,2619.7,2619.4,0.09086853]
[1729225349690,3.83793091,2619.8,2619.4,0.09086853]
[1729225349891,1.68548991,2619.7,2619.4,0.09086853]
[1729225351205,1.68548991,2619.7,2619.4,0.71609596]
[1729225352947,3.81709,2619.8,2619.4,0.08981462]
[1729225353129,1.68548991,2619.7,2619.4,0.08981462]
[1729225353542,1.70633082,2619.7,2619.4,0.08981462]
[1729225354548,1.68548991,2619.7,2619.4,0.08981462]
[1729225354945,4.58126,2619.9,2619.4,3.90740462]
[1729225355149,1.68548991,2619.8,2619.5,3.81749]
[1729225355307,1.68548991,2619.8,2619.6,0.6862]
[1729225355509,0.02084091,2619.9,2619.6,0.77697946]
[1729225355752,1.68548991,2619.8,2619.6,0.77697946]
[1729225356057,1.68548991,2619.8,2619.6,4.59434946]
[1729225356587,1.68548991,2619.8,2619.6,0.77697946]
[1729225357237,1.68548991,2619.8,2619.6,4.59434946]
[1729225357437,1.68548991,2619.8,2619.6,5.43554041]
[1729225357638,1.68548991,2619.7,2619.6,5.43554041]
[1729225357825,1.68548991,2619.8,2619.6,5.43554041]
[1729225358024,4.64036091,2620.1,2619.6,5.43554041]
[1729225358226,1.68548991,2619.8,2619.6,5.43554041]
[1729225359332,0.8028,2620.1,2619.7,4.36833819]
[1729225359640,1.68548991,2619.8,2619.7,3.81715]
[1729225360217,1.68548991,2619.9,2619.7,3.81715]
[1729225360446,1.68548991,2619.9,2619.7,3.90480679]
[1729225361484,1.68548991,2619.8,2619.7,3.90480679]
[1729225361783,1.68548991,2619.8,2619.7,0.08765679]
[1729225362359,3.81664,2620.1,2619.7,0.08765679]
[1729225362360,1.68548991,2619.9,2619.7,0.08765679]
[1729225362538,1.68548991,2619.8,2619.7,0.08765679]
[1729225362737,1.68548991,2619.8,2619.5,0.79744046]
[1729225362972,1.68548991,2619.8,2619.5,3.81751]
[1729225363286,1.68548991,2619.8,2619.6,0.08750459]
[1729225364159,1.68548991,2619.9,2619.6,0.08750459]
[1729225364360,1.68548991,2619.8,2619.6,0.08750459]
[1729225365040,1.68548991,2619.7,2619.6,0.08750459]
[1729225365245,1.68548991,2619.8,2619.6,0.08750459]
[1729225367781,1.68548991,2619.9,2619.6,0.08750459]
[1729225368148,1.68548991,2619.8,2619.6,0.08750459]
[1729225368353,4.62899,2620.0,2619.6,0.08750459]
[1729225368354,3.81679,2620.0,2619.6,0.08750459]
[1729225368554,1.68548991,2619.9,2619.6,0.08750459]
[1729225368867,1.68548991,2619.8,2619.6,0.08750459]
[1729225369451,1.68548991,2619.9,2619.6,0.08750459]
[1729225370097,3.81679,2620.0,2619.6,0.08750459]
[1729225370098,1.68548991,2619.8,2619.6,0.08750459]
[1729225370601,1.68548991,2619.9,2619.6,3.90485459]
[1729225370764,1.68548991,2619.8,2619.6,3.90485459]
[1729225370967,1.68548991,2619.9,2619.6,4.8254581]
[1729225371635,1.68548991,2619.9,2619.6,4.90172557]
[1729225371806,1.68548991,2619.9,2619.6,4.8253881]
[1729225371964,1.68548991,2619.9,2619.6,4.90172558]
[1729225372163,1.68548991,2619.9,2619.6,5.0940928]
[1729225372370,1.68548991,2620.0,2619.6,5.0940928]
[1729225372697,1.68548991,2619.9,2619.7,3.81722]
[1729225372897,1.68548991,2619.9,2619.6,5.01775532]
[1729225373072,1.68548991,2619.9,2619.8,0.08746002]
[1729225373267,1.68548991,2619.9,2619.7,0.0874823]
[1729225373483,1.68548991,2619.9,2619.8,0.08746002]
[1729225373986,1.68548991,2619.9,2619.8,0.08746942]
[1729225374185,1.68548991,2619.9,2619.6,4.93025073]
[1729225374409,1.68548991,2619.9,2619.8,0.08746942]
[1729225374580,1.68548991,2620.0,2619.7,1.33533677]
[1729225374921,1.68548991,2619.9,2619.7,5.15254677]
[1729225377005,1.68548991,2619.9,2619.7,5.15248677]
[1729225377401,1.68548991,2619.9,2619.7,5.15247677]
[1729225380173,4.60451,2620.2,2619.7,5.15247677]
[1729225380515,4.60451,2620.2,2619.8,3.81706]
[1729225380817,4.60451,2620.2,2619.9,0.08742837]
[1729225381115,4.60451,2620.2,2619.7,5.06498507]
[1729225381319,1.68548991,2620.0,2619.8,0.52573523]
[1729225382373,4.60451,2620.2,2619.8,0.52573523]
[1729225382567,1.68548991,2620.0,2619.8,0.52573523]
[1729225383774,1.68548991,2620.1,2619.8,0.52573523]
[1729225384181,1.68548991,2620.0,2619.9,0.55907903]
[1729225384518,1.68548991,2620.1,2619.7,4.50334]
[1729225385580,1.68548991,2620.0,2619.7,0.6862]
[1729225386314,6.31734991,2620.1,2619.7,4.50341]
[1729225386609,6.31734991,2620.1,2619.7,5.43447477]
[1729225387972,10.13411991,2620.1,2619.7,0.93106477]
[1729225388318,10.13411991,2620.1,2619.6,0.19236722]
[1729225388319,1.68548991,2619.9,2619.6,0.19236722]
[1729225390108,1.68548991,2620.0,2619.6,0.19236722]
[1729225391183,1.68548991,2619.9,2619.6,0.19236722]
[1729225391578,1.68548991,2620.0,2619.6,0.19236722]
[1729225392346,1.68548991,2619.9,2619.6,0.19236722]
[1729225392530,1.68548991,2620.0,2619.6,1.24307106]
[1729225393213,1.68548991,2620.0,2619.7,0.08745416]
[1729225394606,1.68548991,2619.9,2619.7,0.08745416]
[1729225396150,5.50227991,2620.0,2619.7,0.08745416]
[1729225396353,1.68548991,2619.9,2619.7,0.08745416]
[1729225397243,1.68548991,2620.0,2619.7,0.08745416]
[1729225401550,0.8152,2620.1,2619.8,3.81707]
[1729225401751,1.68548991,2619.9,2619.8,3.81707]
[1729225402516,1.68548991,2619.9,2619.8,4.50327]
[1729225403755,1.68548991,2619.9,2619.8,0.6862]
[1729225404559,1.68548991,2619.9,2619.8,4.50328]
[1729225404971,1.68548991,2619.9,2619.8,5.53880423]
[1729225406276,4.56759,2620.3,2619.8,1.72172423]
[1729225406474,4.56759,2620.3,2619.8,4.50321]
[1729225406475,1.68548991,2619.9,2619.8,4.50321]
[1729225408069,1.68548991,2619.9,2619.8,4.59058555]
[1729225408554,0.7512,2620.3,2619.8,0.77357555]
[1729225408849,3.81608,2620.5,2619.9,0.6862]
[1729225408850,0.02084091,2620.5,2619.9,0.6862]
[1729225409052,3.81629,2620.4,2619.9,9.11736046]
[1729225409288,3.81629,2620.4,2620.0,0.0873263]
[1729225409993,3.83696091,2620.5,2620.0,0.0873263]
[1729225410148,3.81612,2620.5,2620.0,0.0873263]
[1729225410352,1.68548991,2620.1,2620.0,0.16365256]
[1729225410552,1.68548991,2620.1,2620.0,0.0873263]
[1729225412205,1.68548991,2620.1,2620.0,0.087148]
[1729225412801,1.68548991,2620.1,2619.8,4.61447046]
[1729225413112,1.68548991,2620.0,2619.9,0.08717028]
[1729225415425,1.68548991,2620.0,2619.8,3.89334309]
[1729225415700,1.68548991,2620.1,2619.9,0.72933019]
[1729225415912,4.57387,2620.3,2619.9,0.08714238]
[1729225415913,1.68548991,2620.0,2619.9,0.08714238]
[1729225417443,0.8279,2620.8,2620.3,3.81623]
[1729225417651,0.8279,2620.8,2620.4,0.76251234]
[1729225417652,2.51338991,2620.8,2620.4,0.76251234]
[1729225417948,1.68548991,2620.7,2620.5,0.07631299]
[1729225418317,1.68548991,2620.7,2620.6,0.08690669]
[1729225418922,0.8279,2621.0,2620.6,0.08690669]
[1729225419125,1.68548991,2620.8,2620.6,0.08690669]
[1729225419711,0.8279,2621.0,2620.7,3.81577]
[1729225419933,1.68548991,2620.8,2620.7,3.81577]
[1729225420241,1.68548991,2620.9,2620.7,3.90265442]
[1729225420449,1.68548991,2621.0,2620.8,3.81561]
[1729225420871,1.68548991,2621.1,2620.9,0.08661943]
[1729225421169,1.93151909,2621.3,2620.9,0.08661943]
[1729225421363,1.68548991,2621.1,2620.9,3.90200943]
[1729225421718,4.6247,2621.1,2620.9,0.08661943]
[1729225421918,5.52166082,2621.0,2620.9,0.08661943]
[1729225422124,6.51545299,2621.0,2620.5,0.8737019]
[1729225422326,1.68548991,2620.8,2620.6,0.07631045]
[1729225422627,1.68548991,2620.8,2620.5,0.8737019]
[1729225422628,1.68548991,2620.8,2620.5,0.95001297]
[1729225422821,1.68548991,2620.8,2620.5,0.8737019]
[1729225423046,1.68548991,2620.8,2620.6,0.0862556]
[1729225425518,0.8095,2621.1,2620.6,3.9020756]
[1729225425723,1.68548991,2620.8,2620.6,3.9020756]
[1729225425924,1.68548991,2620.8,2620.6,4.76125735]
[1729225426157,1.68548991,2620.9,2620.6,4.76125735]
[1729225426367,1.68548991,2620.8,2620.6,4.76125735]
[1729225426770,1.68548991,2620.7,2620.6,0.94543735]
[1729225426970,1.68548991,2620.7,2620.6,0.0862556]
[1729225427367,1.68548991,2620.8,2620.6,0.0862556]
[1729225427554,1.68548991,2620.9,2620.7,3.89207722]
[1729225427750,1.68548991,2620.8,2620.6,0.0862556]
[1729225427968,1.68548991,2620.8,2620.6,3.8159]
[1729225428178,1.68548991,2620.8,2620.7,3.81577]
[1729225430186,1.68548991,2620.8,2620.5,4.6897519]
[1729225430345,1.68548991,2620.9,2620.6,3.89212947]
[1729225430679,1.68548991,2620.9,2620.7,3.81577]
[1729225431239,1.68548991,2620.8,2620.6,3.81582]
[1729225431672,2.48878991,2620.7,2620.5,0.1875019]
[1729225431836,2.10291789,2620.6,2620.2,3.8164]
[1729225432037,1.68548991,2620.5,2620.2,3.81639]
[1729225432361,1.68548991,2620.5,2620.3,3.81635]
[1729225432739,1.68548991,2620.5,2620.2,3.81639]
[1729225432987,1.68548991,2620.5,2620.2,7.63279]
[1729225433151,1.68548991,2620.4,2620.2,7.6328]
[1729225433359,1.68548991,2620.4,2620.2,3.81639]
[1729225433554,1.68548991,2620.5,2620.2,3.81639]
[1729225433854,1.68548991,2620.3,2620.0,3.81676]
[1729225434172,1.68548991,2620.1,2619.8,0.6862]
[1729225434352,1.68548991,2620.0,2619.8,0.6862]
[1729225434562,1.68548991,2620.1,2619.9,3.8169]
[1729225435663,1.68548991,2620.1,2619.9,3.89322987]
[1729225435991,1.68548991,2620.1,2619.9,3.8169]
[1729225436289,1.68548991,2620.0,2619.8,3.6862]
[1729225436492,4.59998,2620.3,2619.7,7.63425]
[1729225436493,1.68548991,2619.9,2619.7,7.63425]
[1729225436809,1.68548991,2619.9,2619.7,3.8171]
[1729225437154,1.68548991,2620.0,2619.8,3.81704]
[1729225437382,1.68548991,2619.9,2619.8,3.81704]
[1729225437590,4.62083091,2620.3,2619.8,3.81704]
[1729225437591,1.68548991,2620.0,2619.8,3.81704]
[1729225438093,1.68548991,2620.0,2619.9,0.08364318]
[1729225438853,1.68548991,2620.1,2619.9,0.08364318]
[1729225439104,1.68548991,2620.1,2619.9,3.90057318]
[1729225439823,2.47338991,2620.0,2619.9,0.08364318]
[1729225439980,3.10448599,2620.0,2619.9,0.08364318]
[1729225440175,3.10448599,2620.0,2619.9,0.08108429]
[1729225440379,3.10448599,2620.0,2619.6,3.89367795]
[1729225440620,1.68548991,2619.8,2619.7,0.08112885]
[1729225440778,1.68548991,2619.9,2619.7,0.08112885]
[1729225441323,1.68548991,2619.8,2619.7,0.08112885]
[1729225441903,1.68548991,2619.9,2619.7,0.08112885]
[1729225442106,1.68548991,2619.8,2619.7,0.08112885]
[1729225443603,1.68548991,2619.8,2619.6,3.81735]
[1729225443807,1.68548991,2619.8,2619.7,0.08112885]
[1729225445711,1.68548991,2619.9,2619.7,0.08112885]
[1729225446629,1.68548991,2619.9,2619.7,3.89833885]
[1729225447056,0.7879,2620.0,2619.7,3.89833885]
[1729225447258,1.68548991,2620.2,2619.9,3.81684]
[1729225447746,1.68548991,2620.1,2620.0,0.08106201]
[1729225450021,1.68548991,2620.2,2620.0,3.89785201]
[1729225452856,0.7737,2620.4,2620.0,3.89785201]
[1729225453047,1.68548991,2620.2,2620.0,3.89785201]
[1729225453557,0.7737,2620.4,2620.0,3.97418164]
[1729225453784,1.68548991,2620.2,2620.0,4.29527017]
[1729225453934,1.68548991,2620.2,2620.0,3.89785201]
[1729225455131,1.68548991,2620.3,2620.0,3.89777201]
[1729225455332,1.68548991,2620.3,2620.0,7.71446201]
[1729225455537,1.68548991,2620.3,2620.1,3.81662]
[1729225455735,1.68548991,2620.3,2620.0,7.71446201]
[1729225456020,1.68548991,2620.3,2620.1,0.08120352]
[1729225457823,2.45918991,2620.4,2620.1,0.08120352]
[1729225458023,2.45918991,2620.4,2620.1,0.15753044]
[1729225458273,2.45918991,2620.4,2620.1,3.97407044]
[1729225458470,1.68548991,2620.3,2620.1,3.89774352]
[1729225459535,1.68548991,2620.2,2620.1,0.08120352]
[1729225460479,0.79454091,2620.4,2620.1,0.08120352]
[1729225460480,1.68548991,2620.3,2620.1,0.08120352]
[1729225462558,1.68548991,2620.3,2620.1,3.89779352]
[1729225462758,2.45918991,2620.4,2620.1,3.89779352]
[1729225462958,2.45918991,2620.4,2620.1,3.97411865]
[1729225463285,1.68548991,2620.3,2620.1,3.97411865]
[1729225463583,1.68548991,2620.3,2620.1,3.89779352]
[1729225463894,1.68548991,2620.4,2620.1,3.89779352]
[1729225464073,3.94261156,2622.2,2620.1,3.89779352]
[1729225464074,0.8036,2620.9,2620.4,3.81607]
[1729225464272,0.8036,2620.9,2620.3,1.68548991]
[1729225464273,0.8036,2620.9,2620.6,3.81591]
[1729225464583,0.8036,2620.9,2620.6,7.63173]
[1729225464780,0.8036,2620.9,2620.7,0.08092479]
[1729225464991,0.8036,2620.9,2620.7,3.89666479]
[1729225465284,2.48428991,2621.1,2620.7,3.89666479]
[1729225465898,1.68548991,2621.0,2620.7,3.89666479]
[1729225467361,1.68548991,2620.9,2620.7,0.08092479]
[1729225467705,1.68548991,2620.8,2620.7,0.08092479]
[1729225469632,1.68548991,2620.8,2620.5,3.81598]
[1729225469757,1.68548991,2620.8,2620.7,0.08072359]
[1729225469958,1.68548991,2620.8,2620.6,0.08074586]
[1729225470204,0.02084091,2621.0,2620.7,0.08072359]
[1729225470401,1.68548991,2620.8,2620.7,0.08072359]
[1729225471503,2.51568991,2620.8,2620.7,0.08072359]
[1729225471704,2.51568991,2620.8,2620.4,3.81612]
[1729225472003,1.68548991,2620.6,2620.4,3.81612]
[1729225474238,1.68548991,2620.6,2620.5,3.81606]
[1729225474533,1.68548991,2620.6,2620.3,4.50246]
[1729225474705,1.68548991,2620.6,2620.4,3.81616]
[1729225477305,1.68548991,2620.7,2620.4,3.81616]
[1729225482925,1.68548991,2620.7,2620.5,0.07791428]
[1729225483941,1.68548991,2620.6,2620.5,0.07791428]
[1729225489254,1.68548991,2620.6,2620.3,3.81624]
[1729225489556,1.68548991,2620.6,2620.4,0.07526841]
[1729225490459,1.68548991,2620.6,2620.4,3.89145841]
[1729225490621,1.68548991,2620.5,2620.4,3.89145841]
[1729225492650,1.68548991,2620.5,2620.4,0.07526841]
[1729225493573,1.68548991,2620.5,2620.4,3.89147841]
[1729225494425,1.68548991,2620.5,2620.4,0.07526841]
[1729225495164,1.68548991,2620.6,2620.4,0.07526841]
[1729225495757,1.68548991,2620.5,2620.4,0.07526841]
[1729225497657,1.68548991,2620.6,2620.4,0.07526841]
[1729225497834,1.68548991,2620.5,2620.4,0.07526841]
[1729225498557,1.68548991,2620.6,2620.4,0.07526841]
[1729225498758,1.68548991,2620.5,2620.4,0.07526841]
[1729225499732,1.68548991,2620.6,2620.4,0.07526841]
[1729225501775,1.68548991,2620.6,2620.4,3.89143841]
[1729225502074,1.68548991,2620.6,2620.4,0.07526841]
[1729225502377,6.29434991,2620.5,2620.4,0.07526841]
[1729225502533,2.49913082,2620.5,2620.2,3.81648]
[1729225502877,1.68548991,2620.4,2620.2,3.81648]
[1729225503675,1.68548991,2620.3,2620.2,3.81648]
[1729225503874,1.68548991,2620.4,2620.2,3.81648]
[1729225504851,1.68548991,2620.4,2620.1,4.50284]
[1729225505177,1.68548991,2620.3,2620.1,4.50284]
[1729225505579,1.68548991,2620.2,2620.0,0.8010975]
[1729225505778,1.68548991,2620.2,2619.9,0.6862]
[1729225505779,1.68548991,2620.1,2619.9,0.6862]
[1729225505940,1.68548991,2620.2,2619.9,4.50311]
[1729225506274,1.68548991,2620.1,2619.9,4.50311]
[1729225506970,1.68548991,2620.2,2619.9,0.6862]
[1729225507217,0.02084091,2620.4,2619.9,4.50313]
[1729225507376,0.7928,2620.5,2619.9,4.50313]
[1729225507377,1.68548991,2620.2,2620.0,3.8167]
[1729225507735,1.68548991,2620.1,2620.0,3.8167]
[1729225508142,1.68548991,2620.1,2619.9,0.6862]
[1729225508843,1.68548991,2620.0,2619.8,3.81694]
[1729225510061,1.68548991,2620.0,2619.7,4.6183075]
[1729225510266,1.68548991,2620.0,2619.7,3.81721]
[1729225511006,1.68548991,2619.8,2619.6,0.8010975]
[1729225511205,1.68548991,2619.7,2619.4,4.50378]
[1729225511508,1.68548991,2619.5,2619.4,3.81758]
[1729225512080,1.68548991,2619.6,2619.4,3.81758]
[1729225512319,1.68548991,2619.6,2619.5,3.81752]
[1729225512967,1.68548991,2619.6,2619.5,3.88589321]
[1729225513563,1.68548991,2619.6,2619.5,0.06837321]
[1729225514010,3.81754,2619.5,2619.0,5.3054375]
[1729225514213,1.68548991,2619.2,2619.0,4.50434]
[1729225514506,1.68548991,2619.1,2619.0,4.50434]
[1729225514747,1.68548991,2619.2,2619.0,4.50434]
[1729225514918,1.68548991,2619.3,2619.0,5.03488375]
[1729225515218,1.68548991,2619.3,2619.0,8.85304375]
[1729225515512,1.68548991,2619.2,2619.0,5.03488375]
[1729225515870,1.68548991,2619.2,2619.1,3.8181]
[1729225516070,1.68548991,2619.3,2619.1,3.8181]
[1729225517008,1.68548991,2619.4,2619.1,3.8181]
[1729225517170,1.68548991,2619.4,2619.1,4.77975174]
[1729225517517,1.68548991,2619.4,2619.2,3.81795]
[1729225517893,1.68548991,2619.4,2619.1,0.96165174]
[1729225518640,1.68548991,2619.4,2619.1,0.07635336]
[1729225518799,2.50388991,2619.2,2619.1,0.07635336]
[1729225518999,2.50388991,2619.2,2618.8,4.6195975]
[1729225519000,2.50388991,2619.2,2618.8,3.8185]
[1729225519230,1.68548991,2619.0,2618.8,3.8185]
[1729225519536,0.8184,2619.2,2618.5,1.4872975]
[1729225519537,1.68548991,2618.9,2618.5,1.4872975]
[1729225519689,0.8184,2618.8,2618.5,2.08318132]
[1729225519891,2.50388991,2618.8,2618.6,3.81883]
[1729225520132,1.68548991,2618.8,2618.6,3.81883]